[Event "German-ch Women 2024"]
[Site "Ostfildern"]
[Date "2024.08.20"]
[Round "3.3"]
[White "Kostak, Tetyana"]
[Black "Wagenschuetz, Evelyn"]
[Result "1-0"]
[ECO "A05"]
[WhiteElo "2094"]
[BlackElo "2070"]
[Annotator "NA RC"]
[PlyCount "85"]
[EventDate "2024.08.16"]
[EventType "tourn"]
[EventCountry "GER"]
[SourceTitle "playchess.com"]
[Source "ChessBase"]
[SourceQuality "1"]
[TimeControl "40/5400+30:1800+30"]

1. e4 {[%emt 0:00:04]} c5 {[%emt 0:00:10]} 2. Nf3 {[%emt 0:01:02]} d6 {[%emt 0:00:12]} 3. d3 {[%emt 0:02:55]} g6 {[%emt 0:01:43]} 4. c3 {[%emt 0:03:40]} Bg7 {[%emt 0:00:18]} 5. g3 {[%emt 0:00:54]} Nc6 {[%emt 0:03:59]} 6. Bg2 {[%emt 0:00:13]} Nf6 {[%emt 0:00:27]} 7. O-O {[%emt 0:00:21]} O-O {[%emt 0:00:36]} 8. Re1 {[%emt 0:00:20]} e5 {[%emt 0:03:04]} 9. h3 {[%emt 0:03:01]} d5 {[%emt 0:03:39]} 10. Nbd2 {[%emt 0:00:36]} d4 {[%emt 0:03:02]} 11. Nc4 {[%emt 0:03:26]} Qc7 {[%emt 0:06:58]} 12. cxd4 {[%emt 0:01:10]} cxd4 {[%emt 0:00:09]} 13. a4 {[%emt 0:02:42]} Be6 {[%emt 0:07:55]} 14. b3 {[%emt 0:00:18]} Rfd8 {[%emt 0:10:09]} 15. Bd2 {[%emt 0:03:22]} Rac8 {[%emt 0:09:53]} 16. Rc1 {[%emt 0:01:00]} Qb8 {[%emt 0:00:11]} 17. Ng5 {[%emt 0:04:03]} b5 {[%emt 0:02:38]} 18. Nxe6 {[%emt 0:01:30]} fxe6 {[%emt 0:00:21]} 19. axb5 {[%emt 0:09:39]} Qxb5 {[%emt 0:00:02]} 20. Rb1 {[%emt 0:00:11]} Rb8 {[%emt 0:05:19]} 21. f4 {[%emt 0:02:31]} exf4 {[%emt 0:02:42]} 22. Bxf4 {[%emt 0:00:42]} e5 {[%emt 0:00:48]} 23. Bg5 {[%emt 0:00:28]} h6 {[%emt 0:00:45]} 24. Bxf6 {[%emt 0:08:23]} Bxf6 {[%emt 0:00:02]} 25. Qg4 {[%emt 0:00:34]} Kg7 {[%emt 0:01:46]} 26. Rf1 {[%emt 0:00:39]} Rf8 {[%emt 0:06:55]} 27. Qd7+ {[%emt 0:05:35]} Ne7 {[%emt 0:00:59]} 28. Qxa7 {[%emt 0:01:42]} Rb7 {[%emt 0:11:01]} 29. Qa3 {[%emt 0:02:45]} Qb4 {[%emt 0:02:31]} 30. Qa6 {[%emt 0:00:36]} Qb5 {[%emt 0:00:08]} 31. Qd6 {[%emt 0:05:59]} Rd7 {[%emt 0:12:01]} 32. Qa3 {[%emt 0:04:37]} Rb7 {[%emt 0:01:05]} 33. h4 {[%emt 0:00:28]} Qb4 {[%emt 0:02:56]} 34. Qa6 {[%emt 0:00:36]} Qb5 {[%emt 0:00:31]} 35. Qd6 {[%emt 0:00:23]} Qc6 {[%emt 0:01:00]} 36. Qa3 {[%emt 0:00:26]} Nc8 {[%emt 0:00:56]} 37. Nxe5 {[%emt 0:03:58]} Qe6 {[%emt 0:00:49]} 38. Nxg6 {[%emt 0:01:28]} Rg8 {[%emt 0:00:17]} 39. e5 {[%emt 0:03:35]} Bxe5 {[%emt 0:00:51]} 40. Nxe5 {[%emt 0:11:03]} Qxe5 {[%emt 0:00:06]} 41. Bxb7 {[%emt 0:36:22]} Qxg3+ {[%emt 0:30:13]} 42. Bg2 {[%emt 0:00:03]} Kh8 {[%emt 0:00:47]} 43. Qb2 {[%emt 0:00:14]} 1-0

[Event "German-ch Women 2024"]
[Site "Ostfildern"]
[Date "2024.08.20"]
[Round "3.4"]
[White "Wilmink, Anna"]
[Black "Staerk, Elisa"]
[Result "1/2-1/2"]
[ECO "B20"]
[WhiteElo "1905"]
[BlackElo "2002"]
[Annotator "NA RC"]
[PlyCount "81"]
[EventDate "2024.08.16"]
[EventType "tourn"]
[EventCountry "GER"]
[SourceTitle "playchess.com"]
[Source "ChessBase"]
[SourceQuality "1"]
[TimeControl "40/5400+30:1800+30"]

1. e4 {[%emt 0:00:03]} c5 {[%emt 0:00:03]} 2. b3 {[%emt 0:00:08]} d6 {[%emt 0:00:35]} 3. Bb2 {[%emt 0:00:12]} Nf6 {[%emt 0:00:20]} 4. Nc3 {[%emt 0:00:31]} g6 {[%emt 0:01:01]} 5. Nd5 {[%emt 0:04:08]} Bg7 {[%emt 0:02:36]} 6. Bc4 {[%emt 0:04:28]} Nbd7 {[%emt 0:01:34]} 7. Ne2 {[%emt 0:17:20]} O-O {[%emt 0:03:29]} 8. Nxf6+ {[%emt 0:02:23]} Nxf6 {[%emt 0:00:23]} 9. f3 {[%emt 0:04:33]} e6 {[%emt 0:05:26]} 10. d4 {[%emt 0:05:18]} d5 {[%emt 0:03:35]} 11. exd5 {[%emt 0:02:44]} exd5 {[%emt 0:03:09]} 12. Bd3 {[%emt 0:01:02]} Re8 {[%emt 0:03:54]} 13. O-O {[%emt 0:02:42]} b6 {[%emt 0:04:43]} 14. c4 {[%emt 0:02:24]} Bb7 {[%emt 0:05:33]} 15. Qd2 {[%emt 0:03:58]} Qe7 {[%emt 0:01:32]} 16. Rfe1 {[%emt 0:04:50]} Qf8 {[%emt 0:08:11]} 17. Ba3 {[%emt 0:05:35]} Bh6 {[%emt 0:01:36]} 18. Qc2 {[%emt 0:02:24]} Be3+ {[%emt 0:01:12]} 19. Kh1 {[%emt 0:01:11]} Qh6 {[%emt 0:05:33]} 20. Bc1 {[%emt 0:07:03]} dxc4 {[%emt 0:06:50]} 21. Bxc4 {[%emt 0:02:25]} Qh4 {[%emt 0:03:59]} 22. Bxe3 {[%emt 0:02:05]} Rxe3 {[%emt 0:00:12]} 23. dxc5 {[%emt 0:04:48]} Ng4 {[%emt 0:06:47]} 24. Bxf7+ {[%emt 0:11:52]} Kf8 {[%emt 0:01:58]} 25. fxg4 {[%emt 0:00:05]} Rh3 {[%emt 0:00:16]} 26. Kg1 {[%emt 0:00:40]} Rxh2 {[%emt 0:00:23]} 27. Ng3 {[%emt 0:00:35]} Rxg2+ {[%emt 0:03:50]} 28. Qxg2 {[%emt 0:00:20]} Bxg2 {[%emt 0:00:05]} 29. Kxg2 {[%emt 0:00:43]} Kxf7 {[%emt 0:00:19]} 30. Re4 {[%emt 0:01:39]} Rd8 {[%emt 0:03:52]} 31. Rh1 {[%emt 0:03:15]} Rd2+ {[%emt 0:02:01]} 32. Ne2 {[%emt 0:00:33]} Rxe2+ {[%emt 0:01:32]} 33. Rxe2 {[%emt 0:00:13]} Qxg4+ {[%emt 0:00:05]} 34. Kf1 {[%emt 0:00:32]} h5 {[%emt 0:02:09]} 35. c6 {[%emt 0:00:59]} Kg7 {[%emt 0:01:14]} 36. Re7+ {[%emt 0:00:52]} Kh6 {[%emt 0:00:20]} 37. c7 {[%emt 0:00:29]} Qf3+ {[%emt 0:06:32]} 38. Kg1 {[%emt 0:00:18]} Qg3+ {[%emt 0:01:11]} 39. Kf1 {[%emt 0:00:14]} Qf3+ {[%emt 0:00:10]} 40. Kg1 {[%emt 0:00:13]} Qg3+ {[%emt 0:00:32]} 41. Kf1 {[%emt 0:30:14]} 1/2-1/2

[Event "German-ch Women 2024"]
[Site "Ostfildern"]
[Date "2024.08.20"]
[Round "3.5"]
[White "Just, Anita"]
[Black "Bluebaum, Johanna"]
[Result "0-1"]
[ECO "B15"]
[WhiteElo "1871"]
[BlackElo "1994"]
[Annotator "RC"]
[PlyCount "118"]
[EventDate "2024.08.16"]
[EventType "tourn"]
[EventCountry "GER"]
[SourceTitle "playchess.com"]
[Source "ChessBase"]
[SourceQuality "1"]
[TimeControl "40/5400+30:1800+30"]

1. e4 {[%emt 0:00:02]} c6 {[%emt 0:00:10]} 2. d4 {[%emt 0:00:05]} d5 {[%emt 0:00:07]} 3. Nc3 {[%emt 0:00:10]} dxe4 {[%emt 0:00:14]} 4. Nxe4 {[%emt 0:00:05]} Nf6 {[%emt 0:00:15]} 5. Nxf6+ {[%emt 0:00:52]} exf6 {[%emt 0:00:07]} 6. Nf3 {[%emt 0:03:10]} Bd6 {[%emt 0:00:54]} 7. Bd3 {[%emt 0:00:43]} O-O {[%emt 0:00:31]} 8. O-O {[%emt 0:00:15]} Bg4 {[%emt 0:03:39]} 9. h3 {[%emt 0:01:58]} Bh5 {[%emt 0:03:23]} 10. Re1 {[%emt 0:05:07]} Nd7 {[%emt 0:01:47]} 11. c4 {[%emt 0:05:14]} Re8 {[%emt 0:07:55]} 12. Rxe8+ {[%emt 0:03:06]} Qxe8 {[%emt 0:00:14]} 13. Bd2 {[%emt 0:02:12]} c5 {[%emt 0:04:34]} 14. g4 {[%emt 0:15:45]} Bg6 {[%emt 0:00:46]} 15. Bc3 {[%emt 0:00:32]} cxd4 {[%emt 0:01:39]} 16. Bxd4 {[%emt 0:00:38]} Rd8 {[%emt 0:20:28]} 17. Bxg6 {[%emt 0:09:03]} hxg6 {[%emt 0:00:23]} 18. Qe1 {[%emt 0:08:53]} Ne5 {[%emt 0:02:15]} 19. Nxe5 {[%emt 0:08:10]} fxe5 {[%emt 0:01:20]} 20. Bxa7 {[%emt 0:02:48]} Qc6 {[%emt 0:03:22]} 21. c5 {[%emt 0:06:54]} Bc7 {[%emt 0:05:52]} 22. Bb6 {[%emt 0:05:45]} Bxb6 {[%emt 0:07:05]} 23. cxb6 {[%emt 0:00:06]} Rd3 {[%emt 0:04:42]} 24. Qf1 {[%emt 0:03:37]} e4 {[%emt 0:07:08]} 25. Qg2 {[%emt 0:07:28]} Rd2 {[%emt 0:07:05]} 26. Re1 {[%emt 0:06:01]} Qxb6 {[%emt 0:00:37]} 27. Rxe4 {[%emt 0:01:53]} Qc6 {[%emt 0:08:18]} 28. Re1 {[%emt 0:01:16]} Qf6 {[%emt 0:02:30]} 29. g5 {[%emt 0:01:05]} Qf4 {[%emt 0:03:20]} 30. Rb1 {[%emt 0:00:48]} Rxb2 {[%emt 0:02:12]} 31. Rxb2 {[%emt 0:00:49]} Qc1+ {[%emt 0:00:06]} 32. Kh2 {[%emt 0:00:35]} Qxb2 {[%emt 0:00:13]} 33. a4 {[%emt 0:00:16]} Qb4 {[%emt 0:02:02]} 34. Qg4 {[%emt 0:01:03]} Qxg4 {[%emt 0:01:11]} 35. hxg4 {[%emt 0:00:01]} Kf8 {[%emt 0:00:05]} 36. Kg3 {[%emt 0:00:05]} Ke7 {[%emt 0:00:04]} 37. Kf4 {[%emt 0:00:14]} Kd6 {[%emt 0:00:05]} 38. Ke4 {[%emt 0:00:11]} Kc5 {[%emt 0:00:10]} 39. Ke5 {[%emt 0:01:57]} Kb4 {[%emt 0:00:49]} 40. Kd6 {[%emt 0:00:25]} Kxa4 {[%emt 0:00:56]} 41. Ke7 {[%emt 0:30:46]} b5 {[%emt 0:30:33]} 42. Kxf7 {[%emt 0:00:16]} b4 {[%emt 0:00:03]} 43. f4 {[%emt 0:00:00]} b3 {[%emt 0:00:00]} 44. Kxg6 {[%emt 0:00:00]} b2 {[%emt 0:00:00]} 45. Kxg7 {[%emt 0:00:00]} b1=Q {[%emt 0:00:00]} 46. f5 {[%emt 0:00:00]} Qb7+ {[%emt 0:00:00]} 47. Kg8 {[%emt 0:00:00]} Qe4 {[%emt 0:00:00]} 48. Kg7 {[%emt 0:00:00]} Qe7+ {[%emt 0:00:00]} 49. Kg6 {[%emt 0:00:00]} Qe8+ {[%emt 0:00:00]} 50. Kg7 {[%emt 0:00:00]} Qe7+ {[%emt 0:00:00]} 51. Kg6 {[%emt 0:00:00]} Kb5 {[%emt 0:00:00]} 52. f6 {[%emt 0:00:00]} Qf8 {[%emt 0:00:00]} 53. f7 {[%emt 0:00:00]} Kc6 {[%emt 0:00:00]} 54. Kf6 {[%emt 0:00:00]} Kd6 {[%emt 0:00:00]} 55. g6 {[%emt 0:00:00]} Qh8+ {[%emt 0:00:00]} 56. Kg5 {[%emt 0:00:00]} Qg7 {[%emt 0:00:00]} 57. Kh5 {[%emt 0:00:00]} Ke7 {[%emt 0:00:00]} 58. g5 {[%emt 0:01:21]} Kf8 {[%emt 0:00:00]} 59. Kg4 {[%emt 0:01:33]} Qxg6 {[%emt 0:00:00]} 0-1

[Event "German-ch Women 2024"]
[Site "Ostfildern"]
[Date "2024.08.20"]
[Round "3.6"]
[White "Moeller, Hannah"]
[Black "Moutaqi, Sandra"]
[Result "1/2-1/2"]
[ECO "A09"]
[WhiteElo "1845"]
[BlackElo "1961"]
[Annotator "RC"]
[PlyCount "138"]
[EventDate "2024.08.16"]
[EventType "tourn"]
[EventCountry "GER"]
[SourceTitle "playchess.com"]
[Source "ChessBase"]
[SourceQuality "1"]
[TimeControl "40/5400+30:1800+30"]

1. Nf3 {[%emt 0:00:02]} d5 {[%emt 0:00:13]} 2. g3 {[%emt 0:00:04]} Nf6 {[%emt 0:00:14]} 3. Bg2 {[%emt 0:00:14]} c5 {[%emt 0:00:45]} 4. c4 {[%emt 0:00:22]} d4 {[%emt 0:01:43]} 5. d3 {[%emt 0:02:03]} Nc6 {[%emt 0:00:55]} 6. O-O {[%emt 0:00:21]} e5 {[%emt 0:01:09]} 7. Nbd2 {[%emt 0:02:20]} Be7 {[%emt 0:00:40]} 8. a3 {[%emt 0:01:34]} O-O {[%emt 0:00:24]} 9. Rb1 {[%emt 0:00:37]} Qc7 {[%emt 0:02:48]} 10. Ne1 {[%emt 0:04:09]} Be6 {[%emt 0:04:01]} 11. Nc2 {[%emt 0:02:34]} Rad8 {[%emt 0:03:43]} 12. b4 {[%emt 0:01:58]} b6 {[%emt 0:00:43]} 13. b5 {[%emt 0:04:16]} Nb8 {[%emt 0:00:49]} 14. a4 {[%emt 0:01:30]} Qc8 {[%emt 0:06:20]} 15. Nf3 {[%emt 0:05:49]} Nbd7 {[%emt 0:02:35]} 16. Bd2 {[%emt 0:02:03]} h6 {[%emt 0:04:38]} 17. a5 {[%emt 0:08:34]} Ne8 {[%emt 0:02:25]} 18. Ra1 {[%emt 0:01:09]} Nc7 {[%emt 0:01:25]} 19. axb6 {[%emt 0:02:54]} axb6 {[%emt 0:00:06]} 20. Ra4 {[%emt 0:01:52]} f5 {[%emt 0:00:48]} 21. Nfe1 {[%emt 0:01:17]} Nf6 {[%emt 0:04:09]} 22. e3 {[%emt 0:03:50]} dxe3 {[%emt 0:05:45]} 23. fxe3 {[%emt 0:00:13]} Qd7 {[%emt 0:06:48]} 24. Bc3 {[%emt 0:01:09]} Qd6 {[%emt 0:05:14]} 25. Qa1 {[%emt 0:02:30]} Nd7 {[%emt 0:00:35]} 26. d4 {[%emt 0:03:35]} e4 {[%emt 0:04:14]} 27. d5 {[%emt 0:09:28]} Bxd5 {[%emt 0:01:19]} 28. cxd5 {[%emt 0:00:25]} Nxb5 {[%emt 0:03:09]} 29. Bxg7 {[%emt 0:02:32]} Rf7 {[%emt 0:00:24]} 30. Bb2 {[%emt 0:01:36]} Qxd5 {[%emt 0:00:56]} 31. Na3 {[%emt 0:03:03]} Nxa3 {[%emt 0:01:43]} 32. Qxa3 {[%emt 0:01:04]} c4 {[%emt 0:01:56]} 33. Qa2 {[%emt 0:02:19]} b5 {[%emt 0:05:15]} 34. Ra6 {[%emt 0:02:08]} Bf6 {[%emt 0:00:32]} 35. Nc2 {[%emt 0:00:36]} Qc5 {[%emt 0:07:52]} 36. Nd4 {[%emt 0:01:28]} Bxd4 {[%emt 0:04:12]} 37. Bxd4 {[%emt 0:00:17]} Qf8 {[%emt 0:00:16]} 38. Rb1 {[%emt 0:03:33]} Nc5 {[%emt 0:05:16]} 39. Rb6 {[%emt 0:01:22]} Nb3 {[%emt 0:00:41]} 40. Qf2 {[%emt 0:04:49]} Nxd4 {[%emt 0:01:11]} 41. exd4 {[%emt 0:30:08]} Rfd7 {[%emt 0:33:57]} 42. R6xb5 {[%emt 0:01:10]} Rd5 {[%emt 0:00:00]} 43. Bf1 {[%emt 0:00:00]} Rxd4 {[%emt 0:00:00]} 44. Rxf5 {[%emt 0:00:00]} Qg7 {[%emt 0:00:00]} 45. Qa2 {[%emt 0:00:00]} Kh8 {[%emt 0:00:00]} 46. Bxc4 {[%emt 0:00:00]} Rd2 {[%emt 0:00:00]} 47. Qa1 {[%emt 0:00:00]} Qxa1 {[%emt 0:00:00]} 48. Rxa1 {[%emt 0:00:00]} e3 {[%emt 0:00:00]} 49. Re5 {[%emt 0:00:00]} Rc2 {[%emt 0:00:00]} 50. Bd5 {[%emt 0:00:00]} Rc5 {[%emt 0:00:00]} 51. Ra8 {[%emt 0:00:00]} Rxa8 {[%emt 0:00:00]} 52. Bxa8 {[%emt 0:00:00]} Rxe5 {[%emt 0:00:00]} 53. Kf1 {[%emt 0:00:00]} Kg7 {[%emt 0:00:00]} 54. Ke2 {[%emt 0:00:00]} Kf6 {[%emt 0:00:00]} 55. Bf3 {[%emt 0:00:00]} Kf5 {[%emt 0:01:28]} 56. h3 {[%emt 0:00:00]} Kg5 {[%emt 0:00:24]} 57. Kd3 {[%emt 0:00:00]} Kf6 {[%emt 0:03:52]} 58. Ke2 {[%emt 0:00:00]} Ke6 {[%emt 0:00:19]} 59. Kd3 {[%emt 0:00:00]} Kd6 {[%emt 0:00:18]} 60. Ke2 {[%emt 0:00:00]} Kc5 {[%emt 0:00:21]} 61. Kd3 {[%emt 0:00:00]} Re7 {[%emt 0:00:23]} 62. Be2 {[%emt 0:00:00]} Rg7 {[%emt 0:03:32]} 63. g4 {[%emt 0:00:00]} Re7 {[%emt 0:00:06]} 64. Bf3 {[%emt 0:00:00]} Re5 {[%emt 0:00:22]} 65. Be2 {[%emt 0:00:17]} Kd5 {[%emt 0:00:28]} 66. Bf3+ {[%emt 0:00:47]} Ke6 {[%emt 0:00:18]} 67. Ke2 {[%emt 0:01:25]} Kf6 {[%emt 0:00:15]} 68. h4 {[%emt 0:00:05]} Kg6 {[%emt 0:01:14]} 69. Kd3 {[%emt 0:00:57]} Kf6 {[%emt 0:00:34]} 1/2-1/2

[Event "German-ch Women 2024"]
[Site "Ostfildern"]
[Date "2024.08.20"]
[Round "3.7"]
[White "Mader, Lena"]
[Black "Walker, Julia"]
[Result "1/2-1/2"]
[ECO "D34"]
[WhiteElo "1876"]
[BlackElo "1836"]
[Annotator "NA RC"]
[PlyCount "97"]
[EventDate "2024.08.16"]
[EventType "tourn"]
[EventCountry "GER"]
[SourceTitle "playchess.com"]
[Source "ChessBase"]
[SourceQuality "1"]
[TimeControl "40/5400+30:1800+30"]

1. c4 {[%emt 0:00:03]} e6 {[%emt 0:00:05]} 2. g3 {[%emt 0:00:06]} d5 {[%emt 0:00:06]} 3. Bg2 {[%emt 0:00:29]} c5 {[%emt 0:00:15]} 4. cxd5 {[%emt 0:00:27]} exd5 {[%emt 0:00:16]} 5. d4 {[%emt 0:00:13]} Nc6 {[%emt 0:00:18]} 6. Nf3 {[%emt 0:01:55]} Nf6 {[%emt 0:00:25]} 7. Nc3 {[%emt 0:01:12]} Be7 {[%emt 0:01:30]} 8. O-O {[%emt 0:01:03]} O-O {[%emt 0:00:28]} 9. a3 {[%emt 0:05:28]} c4 {[%emt 0:02:01]} 10. b3 {[%emt 0:02:45]} Na5 {[%emt 0:21:26]} 11. Nd2 {[%emt 0:09:31]} cxb3 {[%emt 0:12:42]} 12. Nxb3 {[%emt 0:00:42]} Nc4 {[%emt 0:00:48]} 13. Nd2 {[%emt 0:03:37]} Nb6 {[%emt 0:07:38]} 14. a4 {[%emt 0:03:04]} a5 {[%emt 0:03:28]} 15. Qb3 {[%emt 0:05:11]} Bb4 {[%emt 0:04:12]} 16. Ba3 {[%emt 0:02:30]} Bxc3 {[%emt 0:06:46]} 17. Qxc3 {[%emt 0:00:09]} Re8 {[%emt 0:00:31]} 18. e3 {[%emt 0:00:33]} Nxa4 {[%emt 0:03:20]} 19. Qb3 {[%emt 0:03:56]} b5 {[%emt 0:10:54]} 20. Qxb5 {[%emt 0:02:31]} Bd7 {[%emt 0:00:37]} 21. Qd3 {[%emt 0:02:44]} g6 {[%emt 0:06:40]} 22. Rfc1 {[%emt 0:04:55]} Bf5 {[%emt 0:01:41]} 23. Qb5 {[%emt 0:04:00]} Bd7 {[%emt 0:04:03]} 24. Qf1 {[%emt 0:02:57]} Rb8 {[%emt 0:02:10]} 25. Qd1 {[%emt 0:08:48]} Nb2 {[%emt 0:02:38]} 26. Bxb2 {[%emt 0:02:26]} Rxb2 {[%emt 0:00:07]} 27. Rc2 {[%emt 0:00:50]} Rxc2 {[%emt 0:03:23]} 28. Qxc2 {[%emt 0:00:01]} Qb6 {[%emt 0:01:35]} 29. Nb3 {[%emt 0:04:27]} Ra8 {[%emt 0:02:48]} 30. Nc5 {[%emt 0:00:57]} Bb5 {[%emt 0:01:02]} 31. Bf1 {[%emt 0:10:00]} Bxf1 {[%emt 0:00:39]} 32. Kxf1 {[%emt 0:00:01]} Qd8 {[%emt 0:01:19]} 33. Ra4 {[%emt 0:04:48]} Qc8 {[%emt 0:00:06]} 34. Kg2 {[%emt 0:03:12]} h5 {[%emt 0:00:12]} 35. Qd2 {[%emt 0:02:18]} h4 {[%emt 0:00:21]} 36. h3 {[%emt 0:00:10]} hxg3 {[%emt 0:00:22]} 37. fxg3 {[%emt 0:00:07]} Qc7 {[%emt 0:00:08]} 38. Qf2 {[%emt 0:06:08]} Kg7 {[%emt 0:00:04]} 39. g4 {[%emt 0:01:58]} Rh8 {[%emt 0:02:16]} 40. Qg3 {[%emt 0:00:56]} Qb6 {[%emt 0:00:19]} 41. Ra2 {[%emt 0:32:56]} Re8 {[%emt 0:11:52]} 42. Qf3 {[%emt 0:00:00]} Ne4 {[%emt 0:02:27]} 43. Nxe4 {[%emt 0:00:00]} Rxe4 {[%emt 0:00:08]} 44. Rf2 {[%emt 0:00:00]} f6 {[%emt 0:03:01]} 45. Qg3 {[%emt 0:00:00]} a4 {[%emt 0:02:30]} 46. Rc2 {[%emt 0:00:00]} Re7 {[%emt 0:01:10]} 47. g5 {[%emt 0:00:00]} fxg5 {[%emt 0:03:27]} 48. Qxg5 {[%emt 0:00:00]} Qe6 {[%emt 0:01:05]} 49. Rc3 {[%emt 0:00:00]} 1/2-1/2

[Event "German-ch Women 2024"]
[Site "Ostfildern"]
[Date "2024.08.20"]
[Round "3.8"]
[White "Noll, Sonja"]
[Black "Bursan, Ana-Maria"]
[Result "0-1"]
[ECO "C00"]
[WhiteElo "1810"]
[BlackElo "1719"]
[Annotator "NA RC"]
[PlyCount "100"]
[EventDate "2024.08.16"]
[EventType "tourn"]
[EventCountry "GER"]
[SourceTitle "playchess.com"]
[Source "ChessBase"]
[SourceQuality "1"]
[TimeControl "40/5400+30:1800+30"]

1. e4 {[%emt 0:00:04]} e6 {[%emt 0:00:10]} 2. Nf3 {[%emt 0:00:21]} d5 {[%emt 0:00:22]} 3. Nc3 {[%emt 0:00:28]} d4 {[%emt 0:02:44]} 4. Ne2 {[%emt 0:00:14]} c5 {[%emt 0:00:45]} 5. b4 {[%emt 0:03:12]} Qb6 {[%emt 0:07:11]} 6. b5 {[%emt 0:03:35]} a6 {[%emt 0:02:14]} 7. c4 {[%emt 0:01:45]} Bd7 {[%emt 0:05:45]} 8. Ne5 {[%emt 0:02:08]} Bd6 {[%emt 0:03:44]} 9. Nxd7 {[%emt 0:00:36]} Nxd7 {[%emt 0:00:32]} 10. bxa6 {[%emt 0:06:33]} Rxa6 {[%emt 0:02:45]} 11. f4 {[%emt 0:04:34]} d3 {[%emt 0:08:42]} 12. Nc3 {[%emt 0:00:46]} Bxf4 {[%emt 0:02:02]} 13. Bxd3 {[%emt 0:03:33]} Ne5 {[%emt 0:03:36]} 14. Be2 {[%emt 0:00:30]} Nf6 {[%emt 0:05:02]} 15. O-O {[%emt 0:05:36]} Ng6 {[%emt 0:03:09]} 16. Rb1 {[%emt 0:03:46]} Qc7 {[%emt 0:01:34]} 17. Qb3 {[%emt 0:10:55]} Bxh2+ {[%emt 0:06:12]} 18. Kh1 {[%emt 0:01:25]} O-O {[%emt 0:01:10]} 19. Qxb7 {[%emt 0:04:14]} Qxb7 {[%emt 0:03:21]} 20. Rxb7 {[%emt 0:00:08]} Be5 {[%emt 0:00:21]} 21. Bd3 {[%emt 0:12:59]} Nf4 {[%emt 0:08:24]} 22. Bb1 {[%emt 0:01:19]} Bxc3 {[%emt 0:04:05]} 23. dxc3 {[%emt 0:00:16]} Ne2 {[%emt 0:00:45]} 24. Bd2 {[%emt 0:08:32]} Ng3+ {[%emt 0:01:58]} 25. Kg1 {[%emt 0:00:04]} Nxf1 {[%emt 0:05:12]} 26. Kxf1 {[%emt 0:00:08]} Ra4 {[%emt 0:01:03]} 27. Rb5 {[%emt 0:04:20]} Rxc4 {[%emt 0:02:16]} 28. Bd3 {[%emt 0:01:32]} Ra4 {[%emt 0:02:27]} 29. Be3 {[%emt 0:02:24]} Nxe4 {[%emt 0:03:28]} 30. Bxe4 {[%emt 0:00:39]} Rxe4 {[%emt 0:00:14]} 31. Bxc5 {[%emt 0:00:20]} Ra8 {[%emt 0:00:31]} 32. a3 {[%emt 0:02:18]} Re5 {[%emt 0:01:32]} 33. a4 {[%emt 0:01:44]} h6 {[%emt 0:00:34]} 34. Bd4 {[%emt 0:01:02]} Rf5+ {[%emt 0:00:58]} 35. Ke2 {[%emt 0:03:26]} Rxa4 {[%emt 0:01:01]} 36. Rb8+ {[%emt 0:00:09]} Kh7 {[%emt 0:00:14]} 37. Rb2 {[%emt 0:00:38]} e5 {[%emt 0:02:19]} 38. Be3 {[%emt 0:01:20]} Rg4 {[%emt 0:02:37]} 39. Kd3 {[%emt 0:01:31]} Rf6 {[%emt 0:02:58]} 40. c4 {[%emt 0:03:16]} Rd6+ {[%emt 0:02:19]} 41. Kc3 {[%emt 0:30:59]} Rg3 {[%emt 0:32:37]} 42. Re2 {[%emt 0:00:27]} Rdg6 {[%emt 0:01:26]} 43. Kb4 {[%emt 0:01:36]} Rxg2 {[%emt 0:00:40]} 44. Re1 {[%emt 0:00:56]} R6g4 {[%emt 0:00:00]} 45. Rc1 {[%emt 0:00:00]} f5 {[%emt 0:00:00]} 46. Ka5 {[%emt 0:00:00]} R4g3 {[%emt 0:00:00]} 47. c5 {[%emt 0:00:00]} Rxe3 {[%emt 0:00:00]} 48. c6 {[%emt 0:00:00]} Rb3 {[%emt 0:00:00]} 49. Ka4 {[%emt 0:00:00]} Rb8 {[%emt 0:00:00]} 50. c7 {[%emt 0:00:00]} Ra2# {[%emt 0:00:00]} 0-1